[Event "January 9 Early 2024"]
[Site "https://www.chess.com"]
[Date "2024.01.11"]
[Round "5"]
[White "Limontaite, Simona"]
[Black "Kopczynski, Michal"]
[Result "0-1"]
[Board "112"]
[TimeControl "180+1"]
[WhiteFideId "12802506"]
[BlackFideId "1124200"]
[WhiteElo "2305"]
[BlackElo "2523"]
[WhiteTeam "LTU"]
[BlackTeam "POL"]
[WhiteClock "0:00:02"]
[BlackClock "0:00:41"]

1. d4 {[%clk 0:03:00]}  Nf6 {[%clk 0:02:58]} 2. c4 {[%clk 0:03:01]}  g6 {[%clk 0:02:57]} 3. Nc3 {[%clk 0:03:01]}  Bg7 {[%clk 0:02:58]} 4. e4 {[%clk 0:03:01]}  d6 {[%clk 0:02:59]} 5. Be2 {[%clk 0:03:02]}  O-O {[%clk 0:02:59]} 6. Bg5 {[%clk 0:03:02]}  c5 {[%clk 0:02:59]} 7. d5 {[%clk 0:03:02]}  Na6 {[%clk 0:02:59]} 8. Nf3 {[%clk 0:03:00]}  Nc7 {[%clk 0:02:59]} 9. h3 {[%clk 0:03:00]}  a6 {[%clk 0:02:59]} 10. a4 {[%clk 0:03:00]}  Rb8 {[%clk 0:03:00]} 11. a5 {[%clk 0:03:01]}  b5 {[%clk 0:03:00]} 12. axb6 {[%clk 0:03:01]}  Rxb6 {[%clk 0:03:00]} 13. Ra2 {[%clk 0:03:01]}  Bd7 {[%clk 0:03:00]} 14. O-O {[%clk 0:02:59]}  Qb8 {[%clk 0:03:00]} 15. Qc2 {[%clk 0:02:54]}  Qb7 {[%clk 0:03:00]} 16. Re1 {[%clk 0:02:50]}  Rb8 {[%clk 0:02:59]} 17. Bc1 {[%clk 0:02:51]}  e5 {[%clk 0:02:56]} 18. Bd3 {[%clk 0:02:32]}  Nh5 {[%clk 0:02:53]} 19. Ne2 {[%clk 0:02:28]}  Rb3 {[%clk 0:02:43]} 20. Nd2 {[%clk 0:02:18]}  Rb6 {[%clk 0:02:37]} 21. Nb1 {[%clk 0:02:12]}  Qc8 {[%clk 0:02:28]} 22. Nbc3 {[%clk 0:02:07]}  f5 {[%clk 0:02:20]} 23. f4 {[%clk 0:01:59]}  fxe4 {[%clk 0:02:11]} 24. Nxe4 {[%clk 0:01:48]}  Ne8 {[%clk 0:01:47]} 25. N4c3 {[%clk 0:00:53]}  Bxh3 {[%clk 0:01:38]} 26. Bxg6 {[%clk 0:00:27]}  hxg6 {[%clk 0:01:24]} 27. Qxg6 {[%clk 0:00:27]}  Qg4 {[%clk 0:01:21]} 28. Qxg4 {[%clk 0:00:21]}  Bxg4 {[%clk 0:01:22]} 29. g3 {[%clk 0:00:08]}  exf4 {[%clk 0:01:15]} 30. gxf4 {[%clk 0:00:05]}  Nef6 {[%clk 0:01:09]} 31. Kf2 {[%clk 0:00:04]}  Re8 {[%clk 0:01:00]} 32. Rg1 {[%clk 0:00:04]}  Bf5 {[%clk 0:00:44]} 33. Be3 {[%clk 0:00:02]}  Ng4+ {[%clk 0:00:42]} 34. Kf3 {[%clk 0:00:02]}  Rxe3+ {[%clk 0:00:41]} 0-1

[Event "January 9 Early 2024"]
[Site "https://www.chess.com"]
[Date "2024.01.11"]
[Round "5"]
[White "Halkias, Stelios"]
[Black "Salem, A.R. Saleh"]
[Result "0-1"]
[Board "113"]
[TimeControl "180+1"]
[WhiteFideId "4201809"]
[BlackFideId "9301348"]
[WhiteElo "2727"]
[BlackElo "2979"]
[WhiteTeam "GRE"]
[BlackTeam "UAE"]
[WhiteClock "0:00:08"]
[BlackClock "0:00:34"]

1. Nf3 {[%clk 0:03:00]}  Nf6 {[%clk 0:02:58]} 2. c4 {[%clk 0:03:00]}  c5 {[%clk 0:02:57]} 3. Nc3 {[%clk 0:02:59]}  d5 {[%clk 0:02:57]} 4. cxd5 {[%clk 0:02:59]}  Nxd5 {[%clk 0:02:58]} 5. e3 {[%clk 0:03:00]}  e6 {[%clk 0:02:58]} 6. Bc4 {[%clk 0:03:00]}  Be7 {[%clk 0:02:57]} 7. O-O {[%clk 0:02:59]}  O-O {[%clk 0:02:58]} 8. d4 {[%clk 0:02:59]}  Nxc3 {[%clk 0:02:58]} 9. bxc3 {[%clk 0:02:59]}  Qc7 {[%clk 0:02:58]} 10. Qe2 {[%clk 0:02:58]}  b6 {[%clk 0:02:56]} 11. Bd3 {[%clk 0:02:57]}  Bb7 {[%clk 0:02:56]} 12. e4 {[%clk 0:02:57]}  Rd8 {[%clk 0:02:55]} 13. Bg5 {[%clk 0:02:28]}  Bxg5 {[%clk 0:02:44]} 14. Nxg5 {[%clk 0:02:28]}  cxd4 {[%clk 0:02:45]} 15. cxd4 {[%clk 0:02:28]}  Nc6 {[%clk 0:02:42]} 16. e5 {[%clk 0:02:01]}  Nxd4 {[%clk 0:02:33]} 17. Bxh7+ {[%clk 0:01:59]}  Kf8 {[%clk 0:02:34]} 18. Qh5 {[%clk 0:01:57]}  Rd7 {[%clk 0:02:13]} 19. Bg6 {[%clk 0:01:46]}  Qc4 {[%clk 0:01:02]} 20. Rfe1 {[%clk 0:00:20]}  fxg6 {[%clk 0:00:43]} 21. Qh8+ {[%clk 0:00:20]}  Ke7 {[%clk 0:00:44]} 22. Qxg7+ {[%clk 0:00:21]}  Kd8 {[%clk 0:00:45]} 23. Qxg6 {[%clk 0:00:20]}  Rc8 {[%clk 0:00:39]} 24. Kh1 {[%clk 0:00:12]}  Qd5 {[%clk 0:00:37]} 25. f3 {[%clk 0:00:11]}  Kc7 {[%clk 0:00:37]} 26. Rad1 {[%clk 0:00:11]}  Kb8 {[%clk 0:00:37]} 27. Re4 {[%clk 0:00:08]}  Nxf3 {[%clk 0:00:34]} 0-1

[Event "January 9 Early 2024"]
[Site "https://www.chess.com"]
[Date "2024.01.11"]
[Round "5"]
[White "Zhao, Jun"]
[Black "McCoy, Owen"]
[Result "0-1"]
[Board "114"]
[TimeControl "180+1"]
[WhiteFideId "8602522"]
[BlackFideId "30924502"]
[WhiteElo "2755"]
[BlackElo "2609"]
[WhiteTeam "CHN"]
[BlackTeam "USA"]
[WhiteClock "0:01:21"]
[BlackClock "0:00:06"]

1. d4 {[%clk 0:02:55]}  Nf6 {[%clk 0:02:39]} 2. Nf3 {[%clk 0:02:56]}  e6 {[%clk 0:02:38]} 3. g3 {[%clk 0:02:57]}  d5 {[%clk 0:02:36]} 4. Bg2 {[%clk 0:02:57]}  Be7 {[%clk 0:02:06]} 5. O-O {[%clk 0:02:58]}  O-O {[%clk 0:02:07]} 6. c3 {[%clk 0:02:59]}  b6 {[%clk 0:01:59]} 7. Re1 {[%clk 0:02:59]}  Bb7 {[%clk 0:01:59]} 8. Nbd2 {[%clk 0:03:00]}  Nbd7 {[%clk 0:01:53]} 9. a4 {[%clk 0:03:01]}  c5 {[%clk 0:01:39]} 10. a5 {[%clk 0:03:02]}  b5 {[%clk 0:01:35]} 11. a6 {[%clk 0:03:01]}  Bc6 {[%clk 0:01:35]} 12. Nb3 {[%clk 0:02:54]}  c4 {[%clk 0:01:23]} 13. Na5 {[%clk 0:02:51]}  Qb6 {[%clk 0:01:23]} 14. Bg5 {[%clk 0:02:38]}  Rac8 {[%clk 0:01:07]} 15. Ne5 {[%clk 0:02:34]}  Nxe5 {[%clk 0:00:48]} 16. dxe5 {[%clk 0:02:35]}  Ng4 {[%clk 0:00:48]} 17. Bxe7 {[%clk 0:02:34]}  Qxf2+ {[%clk 0:00:48]} 18. Kh1 {[%clk 0:02:34]}  Ne3 {[%clk 0:00:48]} 19. Bf3 {[%clk 0:02:17]}  Nxd1 {[%clk 0:00:47]} 20. Raxd1 {[%clk 0:02:17]}  Rfe8 {[%clk 0:00:46]} 21. Bd6 {[%clk 0:02:15]}  Qb6 {[%clk 0:00:46]} 22. Nxc6 {[%clk 0:02:12]}  Rxc6 {[%clk 0:00:45]} 23. e4 {[%clk 0:02:13]}  Qxa6 {[%clk 0:00:39]} 24. exd5 {[%clk 0:02:13]}  exd5 {[%clk 0:00:37]} 25. Bxd5 {[%clk 0:02:13]}  h6 {[%clk 0:00:27]} 26. Rf1 {[%clk 0:02:09]}  Re6 {[%clk 0:00:21]} 27. Bxe6 {[%clk 0:02:02]}  fxe6 {[%clk 0:00:22]} 28. Rf8+ {[%clk 0:01:58]}  Kh7 {[%clk 0:00:22]} 29. Rdf1 {[%clk 0:01:59]}  Rxd6 {[%clk 0:00:20]} 30. exd6 {[%clk 0:01:59]}  Qxd6 {[%clk 0:00:21]} 31. R8f2 {[%clk 0:01:50]}  Qd5+ {[%clk 0:00:20]} 32. Kg1 {[%clk 0:01:49]}  a5 {[%clk 0:00:20]} 33. Re1 {[%clk 0:01:49]}  b4 {[%clk 0:00:20]} 34. cxb4 {[%clk 0:01:48]}  axb4 {[%clk 0:00:21]} 35. Rfe2 {[%clk 0:01:48]}  Qd4+ {[%clk 0:00:20]} 36. Kg2 {[%clk 0:01:43]}  e5 {[%clk 0:00:20]} 37. Rc1 {[%clk 0:01:40]}  e4 {[%clk 0:00:13]} 38. Rec2 {[%clk 0:01:26]}  b3 {[%clk 0:00:13]} 39. Re2 {[%clk 0:01:25]}  e3 {[%clk 0:00:09]} 40. Rc3 {[%clk 0:01:21]}  Qd5+ {[%clk 0:00:06]} 0-1

[Event "January 9 Early 2024"]
[Site "https://www.chess.com"]
[Date "2024.01.11"]
[Round "5"]
[White "Niemann, Hans Moke"]
[Black "Yuan, Qingyu"]
[Result "1-0"]
[Board "118"]
[TimeControl "180+1"]
[WhiteFideId "2093596"]
[BlackFideId "8609772"]
[WhiteElo "3063"]
[BlackElo "2758"]
[WhiteTeam "USA"]
[BlackTeam "CHN"]
[WhiteClock "0:01:04"]
[BlackClock "0:00:02"]

1. e4 {[%clk 0:03:00]}  c6 {[%clk 0:02:59]} 2. Nf3 {[%clk 0:03:00]}  d5 {[%clk 0:03:00]} 3. d3 {[%clk 0:03:01]}  dxe4 {[%clk 0:03:00]} 4. dxe4 {[%clk 0:03:01]}  Qxd1+ {[%clk 0:03:01]} 5. Kxd1 {[%clk 0:03:02]}  Nf6 {[%clk 0:03:02]} 6. Nfd2 {[%clk 0:03:03]}  g6 {[%clk 0:03:02]} 7. f3 {[%clk 0:03:01]}  Bh6 {[%clk 0:03:01]} 8. a4 {[%clk 0:03:01]}  Be6 {[%clk 0:02:53]} 9. Bc4 {[%clk 0:03:00]}  Bxc4 {[%clk 0:02:51]} 10. Nxc4 {[%clk 0:03:01]}  Bxc1 {[%clk 0:02:51]} 11. Kxc1 {[%clk 0:03:02]}  Nbd7 {[%clk 0:02:51]} 12. a5 {[%clk 0:03:02]}  O-O-O {[%clk 0:02:48]} 13. Nbd2 {[%clk 0:02:55]}  Kc7 {[%clk 0:02:42]} 14. b4 {[%clk 0:02:53]}  Nh5 {[%clk 0:02:37]} 15. g3 {[%clk 0:02:52]}  g5 {[%clk 0:02:34]} 16. c3 {[%clk 0:02:51]}  Nhf6 {[%clk 0:02:15]} 17. Kc2 {[%clk 0:02:48]}  h5 {[%clk 0:02:14]} 18. h4 {[%clk 0:02:46]}  Rdg8 {[%clk 0:02:08]} 19. Rag1 {[%clk 0:02:39]}  Rh7 {[%clk 0:02:03]} 20. Ne3 {[%clk 0:02:25]}  e6 {[%clk 0:01:46]} 21. hxg5 {[%clk 0:02:14]}  Rxg5 {[%clk 0:01:46]} 22. f4 {[%clk 0:02:14]}  Rg8 {[%clk 0:01:46]} 23. e5 {[%clk 0:02:15]}  Nd5 {[%clk 0:01:36]} 24. Nxd5+ {[%clk 0:02:15]}  cxd5 {[%clk 0:01:35]} 25. g4 {[%clk 0:02:15]}  Rgh8 {[%clk 0:01:21]} 26. Nf3 {[%clk 0:02:07]}  hxg4 {[%clk 0:01:18]} 27. Rxh7 {[%clk 0:02:08]}  Rxh7 {[%clk 0:01:18]} 28. Rxg4 {[%clk 0:02:09]}  Nf8 {[%clk 0:00:58]} 29. Nd4 {[%clk 0:02:01]}  Kd7 {[%clk 0:00:54]} 30. Rg8 {[%clk 0:01:53]}  Ng6 {[%clk 0:00:50]} 31. b5 {[%clk 0:01:48]}  Nxf4 {[%clk 0:00:45]} 32. Ra8 {[%clk 0:01:41]}  Rh2+ {[%clk 0:00:36]} 33. Kd1 {[%clk 0:01:40]}  Nd3 {[%clk 0:00:34]} 34. Rxa7 {[%clk 0:01:37]}  Kc8 {[%clk 0:00:21]} 35. Ra8+ {[%clk 0:01:31]}  Kd7 {[%clk 0:00:21]} 36. Rb8 {[%clk 0:01:21]}  Kc7 {[%clk 0:00:18]} 37. Rf8 {[%clk 0:01:20]}  Nxe5 {[%clk 0:00:19]} 38. b6+ {[%clk 0:01:20]}  Kd7 {[%clk 0:00:19]} 39. a6 {[%clk 0:01:21]}  bxa6 {[%clk 0:00:08]} 40. b7 {[%clk 0:01:21]}  Rh1+ {[%clk 0:00:04]} 41. Ke2 {[%clk 0:01:14]}  Rh2+ {[%clk 0:00:04]} 42. Kf1 {[%clk 0:01:12]}  Nc4 {[%clk 0:00:03]} 43. b8=Q {[%clk 0:01:10]}  Nd2+ {[%clk 0:00:03]} 44. Kg1 {[%clk 0:01:08]}  Rh8 {[%clk 0:00:02]} 45. Rxf7# {[%clk 0:01:04]} 1-0

[Event "January 9 Early 2024"]
[Site "https://www.chess.com"]
[Date "2024.01.11"]
[Round "5"]
[White "Martinez Ramirez, Lennis"]
[Black "Pranesh M"]
[Result "0-1"]
[Board "122"]
[TimeControl "180+1"]
[WhiteFideId "3509079"]
[BlackFideId "35028600"]
[WhiteElo "2715"]
[BlackElo "2945"]
[WhiteTeam "CUB"]
[BlackTeam "IND"]
[WhiteClock "0:00:01"]
[BlackClock "0:00:45"]

1. Nf3 {[%clk 0:03:00]}  c5 {[%clk 0:02:58]} 2. e4 {[%clk 0:02:52]}  Nc6 {[%clk 0:02:58]} 3. Bb5 {[%clk 0:02:51]}  Qc7 {[%clk 0:02:57]} 4. O-O {[%clk 0:02:51]}  Nf6 {[%clk 0:02:57]} 5. Nc3 {[%clk 0:02:49]}  e6 {[%clk 0:02:57]} 6. Re1 {[%clk 0:02:46]}  h5 {[%clk 0:02:58]} 7. h3 {[%clk 0:02:31]}  Nd4 {[%clk 0:02:52]} 8. e5 {[%clk 0:02:25]}  Ng8 {[%clk 0:02:50]} 9. a4 {[%clk 0:02:15]}  Ne7 {[%clk 0:02:45]} 10. Bf1 {[%clk 0:01:48]}  a6 {[%clk 0:02:44]} 11. Ne4 {[%clk 0:01:34]}  Nef5 {[%clk 0:02:31]} 12. c3 {[%clk 0:01:29]}  Nxf3+ {[%clk 0:02:09]} 13. Qxf3 {[%clk 0:01:30]}  Qxe5 {[%clk 0:02:06]} 14. d4 {[%clk 0:01:30]}  cxd4 {[%clk 0:02:04]} 15. Bf4 {[%clk 0:01:29]}  Qa5 {[%clk 0:02:05]} 16. b4 {[%clk 0:01:23]}  Qd8 {[%clk 0:01:55]} 17. Bd3 {[%clk 0:00:27]}  Be7 {[%clk 0:01:30]} 18. Nc5 {[%clk 0:00:22]}  Nh4 {[%clk 0:01:24]} 19. Qg3 {[%clk 0:00:20]}  d6 {[%clk 0:01:22]} 20. Nb3 {[%clk 0:00:03]}  g5 {[%clk 0:01:13]} 21. Bd2 {[%clk 0:00:03]}  dxc3 {[%clk 0:00:59]} 22. Bxc3 {[%clk 0:00:04]}  e5 {[%clk 0:00:59]} 23. Qe3 {[%clk 0:00:04]}  Nf5 {[%clk 0:00:57]} 24. Qe2 {[%clk 0:00:04]}  Ng7 {[%clk 0:00:54]} 25. Na5 {[%clk 0:00:04]}  O-O {[%clk 0:00:50]} 26. Rad1 {[%clk 0:00:03]}  Rb8 {[%clk 0:00:50]} 27. Bb1 {[%clk 0:00:02]}  Qc7 {[%clk 0:00:49]} 28. Qc2 {[%clk 0:00:02]}  Bf5 {[%clk 0:00:49]} 29. Qb2 {[%clk 0:00:01]}  Bxb1 {[%clk 0:00:48]} 30. Rxb1 {[%clk 0:00:02]}  b6 {[%clk 0:00:48]} 31. Nb3 {[%clk 0:00:01]}  Qd7 {[%clk 0:00:48]} 32. Bd2 {[%clk 0:00:01]}  Qxa4 {[%clk 0:00:48]} 33. Ra1 {[%clk 0:00:01]}  Qb5 {[%clk 0:00:48]} 34. Nd4 {[%clk 0:00:02]}  Qd5 {[%clk 0:00:47]} 35. Nf3 {[%clk 0:00:01]}  Ne6 {[%clk 0:00:47]} 36. Nh2 {[%clk 0:00:01]}  a5 {[%clk 0:00:45]} 0-1

[Event "January 9 Early 2024"]
[Site "https://www.chess.com"]
[Date "2024.01.11"]
[Round "5"]
[White "Maksimovic, Bojan"]
[Black "Cieslak, Patryk"]
[Result "0-1"]
[Board "123"]
[TimeControl "180+1"]
[WhiteFideId "14408120"]
[BlackFideId "21078882"]
[WhiteElo "2895"]
[BlackElo "2700"]
[WhiteTeam "BIH"]
[BlackTeam "POL"]
[WhiteClock "0:00:01"]
[BlackClock "0:00:22"]

1. e4 {[%clk 0:03:00]}  c6 {[%clk 0:03:00]} 2. d4 {[%clk 0:03:00]}  d5 {[%clk 0:03:01]} 3. Nc3 {[%clk 0:03:01]}  dxe4 {[%clk 0:03:01]} 4. Nxe4 {[%clk 0:03:02]}  Nf6 {[%clk 0:03:02]} 5. Nxf6+ {[%clk 0:03:02]}  exf6 {[%clk 0:03:03]} 6. c3 {[%clk 0:03:03]}  Bd6 {[%clk 0:03:04]} 7. Bd3 {[%clk 0:03:04]}  O-O {[%clk 0:03:04]} 8. Qc2 {[%clk 0:03:04]}  Re8+ {[%clk 0:03:05]} 9. Ne2 {[%clk 0:03:05]}  h5 {[%clk 0:03:06]} 10. O-O {[%clk 0:03:06]}  h4 {[%clk 0:03:05]} 11. h3 {[%clk 0:03:06]}  Qc7 {[%clk 0:02:53]} 12. c4 {[%clk 0:02:55]}  Be6 {[%clk 0:02:49]} 13. Bd2 {[%clk 0:02:42]}  Nd7 {[%clk 0:02:47]} 14. Rae1 {[%clk 0:02:41]}  Rad8 {[%clk 0:02:31]} 15. f4 {[%clk 0:02:17]}  f5 {[%clk 0:02:16]} 16. Bxf5 {[%clk 0:02:12]}  Bxf5 {[%clk 0:02:17]} 17. Qxf5 {[%clk 0:02:13]}  Nf6 {[%clk 0:02:18]} 18. Bc3 {[%clk 0:01:58]}  Ne4 {[%clk 0:02:17]} 19. Qg4 {[%clk 0:01:50]}  Nxc3 {[%clk 0:02:13]} 20. bxc3 {[%clk 0:01:36]}  Qe7 {[%clk 0:02:13]} 21. c5 {[%clk 0:01:27]}  Bc7 {[%clk 0:02:12]} 22. f5 {[%clk 0:01:25]}  Qe3+ {[%clk 0:02:09]} 23. Kh1 {[%clk 0:01:25]}  Re4 {[%clk 0:01:20]} 24. Rf3 {[%clk 0:00:24]}  Qd2 {[%clk 0:01:01]} 25. Ng1 {[%clk 0:00:04]}  Rxg4 {[%clk 0:00:56]} 26. Re2 {[%clk 0:00:04]}  Qxe2 {[%clk 0:00:28]} 27. Nxe2 {[%clk 0:00:05]}  Re4 {[%clk 0:00:26]} 28. Rf2 {[%clk 0:00:02]}  Rde8 {[%clk 0:00:26]} 29. Ng1 {[%clk 0:00:01]}  Re1 {[%clk 0:00:26]} 30. f6 {[%clk 0:00:01]}  Bg3 {[%clk 0:00:22]} 0-1

[Event "January 9 Early 2024"]
[Site "https://www.chess.com"]
[Date "2024.01.11"]
[Round "5"]
[White "Zavgorodniy, Sergiy"]
[Black "Bonin, Jay"]
[Result "1-0"]
[Board "124"]
[TimeControl "180+1"]
[WhiteFideId "14110148"]
[BlackFideId "2000644"]
[WhiteElo "2626"]
[BlackElo "2333"]
[WhiteTeam "UKR"]
[BlackTeam "USA"]
[WhiteClock "0:00:39"]
[BlackClock "0:00:23"]

1. e4 {[%clk 0:03:00]}  e5 {[%clk 0:02:57]} 2. Nf3 {[%clk 0:03:00]}  Nc6 {[%clk 0:02:56]} 3. Bb5 {[%clk 0:02:59]}  Nge7 {[%clk 0:02:54]} 4. d4 {[%clk 0:02:53]}  exd4 {[%clk 0:02:53]} 5. Nxd4 {[%clk 0:02:42]}  Nxd4 {[%clk 0:02:51]} 6. Qxd4 {[%clk 0:02:43]}  Nc6 {[%clk 0:02:51]} 7. Bxc6 {[%clk 0:02:42]}  dxc6 {[%clk 0:02:50]} 8. Qxd8+ {[%clk 0:02:41]}  Kxd8 {[%clk 0:02:48]} 9. Be3 {[%clk 0:02:35]}  Bd6 {[%clk 0:02:41]} 10. Nd2 {[%clk 0:02:34]}  Be6 {[%clk 0:02:39]} 11. a3 {[%clk 0:02:31]}  c5 {[%clk 0:02:30]} 12. f3 {[%clk 0:02:26]}  c6 {[%clk 0:02:18]} 13. Kf2 {[%clk 0:02:25]}  b6 {[%clk 0:02:14]} 14. g4 {[%clk 0:02:18]}  Kc7 {[%clk 0:02:08]} 15. h4 {[%clk 0:02:18]}  Rad8 {[%clk 0:01:57]} 16. Rad1 {[%clk 0:02:06]}  Be5 {[%clk 0:01:52]} 17. c3 {[%clk 0:02:06]}  Rd3 {[%clk 0:01:49]} 18. f4 {[%clk 0:02:05]}  Bf6 {[%clk 0:01:27]} 19. f5 {[%clk 0:01:54]}  Bc8 {[%clk 0:01:22]} 20. Bf4+ {[%clk 0:01:54]}  Kb7 {[%clk 0:01:21]} 21. g5 {[%clk 0:01:51]}  Be7 {[%clk 0:01:19]} 22. Nf3 {[%clk 0:01:48]}  Rhd8 {[%clk 0:01:17]} 23. Rxd3 {[%clk 0:01:47]}  Rxd3 {[%clk 0:01:14]} 24. Ne5 {[%clk 0:01:48]}  Rd8 {[%clk 0:01:07]} 25. Nxf7 {[%clk 0:01:47]}  Rf8 {[%clk 0:01:05]} 26. Ne5 {[%clk 0:01:45]}  Bd6 {[%clk 0:01:03]} 27. Nd3 {[%clk 0:01:44]}  c4 {[%clk 0:00:57]} 28. Bxd6 {[%clk 0:01:42]}  Rd8 {[%clk 0:00:57]} 29. Be5 {[%clk 0:01:23]}  cxd3 {[%clk 0:00:55]} 30. Bxg7 {[%clk 0:01:23]}  c5 {[%clk 0:00:53]} 31. Ke3 {[%clk 0:01:13]}  c4 {[%clk 0:00:49]} 32. Bd4 {[%clk 0:00:57]}  Ka6 {[%clk 0:00:45]} 33. Kf4 {[%clk 0:00:55]}  Kb5 {[%clk 0:00:42]} 34. Rh2 {[%clk 0:00:54]}  Ka4 {[%clk 0:00:42]} 35. h5 {[%clk 0:00:53]}  Kb3 {[%clk 0:00:40]} 36. h6 {[%clk 0:00:46]}  b5 {[%clk 0:00:27]} 37. g6 {[%clk 0:00:45]}  Rd7 {[%clk 0:00:25]} 38. gxh7 {[%clk 0:00:38]}  Rxh7 {[%clk 0:00:23]} 39. Bg7 {[%clk 0:00:39]} 1-0

[Event "January 9 Early 2024"]
[Site "https://www.chess.com"]
[Date "2024.01.11"]
[Round "5"]
[White "Lymar, Vladislav"]
[Black "Santeramo, Alessia Carmen"]
[Result "1-0"]
[Board "125"]
[TimeControl "180+1"]
[WhiteFideId "14162180"]
[BlackFideId "850810"]
[WhiteElo "2534"]
[BlackElo "2321"]
[WhiteTeam "UKR"]
[BlackTeam "ITA"]
[WhiteClock "0:00:16"]
[BlackClock "0:00:03"]

1. d4 {[%clk 0:03:00]}  Nf6 {[%clk 0:02:51]} 2. c4 {[%clk 0:03:00]}  e6 {[%clk 0:02:46]} 3. Bf4 {[%clk 0:03:00]}  Bb4+ {[%clk 0:02:31]} 4. Nd2 {[%clk 0:03:00]}  O-O {[%clk 0:02:29]} 5. a3 {[%clk 0:02:59]}  Be7 {[%clk 0:02:26]} 6. e4 {[%clk 0:02:50]}  d5 {[%clk 0:02:16]} 7. cxd5 {[%clk 0:02:49]}  exd5 {[%clk 0:02:15]} 8. e5 {[%clk 0:02:50]}  Ne4 {[%clk 0:02:11]} 9. Bd3 {[%clk 0:02:47]}  Bf5 {[%clk 0:01:54]} 10. Qe2 {[%clk 0:02:48]}  Nc6 {[%clk 0:01:52]} 11. Ngf3 {[%clk 0:02:46]}  g5 {[%clk 0:01:38]} 12. g4 {[%clk 0:01:43]}  Bxg4 {[%clk 0:01:28]} 13. Be3 {[%clk 0:01:27]}  Nxd2 {[%clk 0:00:52]} 14. Kxd2 {[%clk 0:01:24]}  f6 {[%clk 0:00:41]} 15. Rhg1 {[%clk 0:01:18]}  Bxf3 {[%clk 0:00:37]} 16. Qxf3 {[%clk 0:01:16]}  fxe5 {[%clk 0:00:38]} 17. Bxh7+ {[%clk 0:01:16]}  Kxh7 {[%clk 0:00:33]} 18. Qh5+ {[%clk 0:01:17]}  Kg7 {[%clk 0:00:20]} 19. Bxg5 {[%clk 0:01:17]}  Bxg5+ {[%clk 0:00:21]} 20. Rxg5+ {[%clk 0:01:17]}  Kf6 {[%clk 0:00:21]} 21. dxe5+ {[%clk 0:00:57]}  Ke7 {[%clk 0:00:21]} 22. Rg7+ {[%clk 0:00:56]}  Ke6 {[%clk 0:00:17]} 23. Qh6+ {[%clk 0:00:45]}  Kxe5 {[%clk 0:00:02]} 24. Re1+ {[%clk 0:00:44]}  Kd4 {[%clk 0:00:02]} 25. Qe3+ {[%clk 0:00:16]}  Kc4 {[%clk 0:00:03]} 26. Rc1+ {[%clk 0:00:16]}  Kb5 {[%clk 0:00:03]} 27. Rc5+ {[%clk 0:00:16]}  Ka6 {[%clk 0:00:03]} 28. Qd3+ {[%clk 0:00:16]} 1-0

[Event "January 9 Early 2024"]
[Site "https://www.chess.com"]
[Date "2024.01.11"]
[Round "5"]
[White "Skatchkov, Valery"]
[Black "Bindrich, Falko"]
[Result "0-1"]
[Board "126"]
[TimeControl "180+1"]
[WhiteFideId "24195812"]
[BlackFideId "4676670"]
[WhiteElo "2608"]
[BlackElo "2825"]
[WhiteTeam "RUS"]
[BlackTeam "GER"]
[WhiteClock "0:00:09"]
[BlackClock "0:00:11"]

1. d4 {[%clk 0:03:00]}  d5 {[%clk 0:02:59]} 2. c4 {[%clk 0:03:01]}  e6 {[%clk 0:03:00]} 3. Nf3 {[%clk 0:03:01]}  Nf6 {[%clk 0:03:01]} 4. g3 {[%clk 0:03:01]}  Bb4+ {[%clk 0:02:59]} 5. Nbd2 {[%clk 0:03:01]}  O-O {[%clk 0:02:58]} 6. Bg2 {[%clk 0:03:01]}  b6 {[%clk 0:02:59]} 7. O-O {[%clk 0:03:01]}  Bb7 {[%clk 0:03:00]} 8. Ne5 {[%clk 0:03:01]}  Re8 {[%clk 0:03:00]} 9. Qc2 {[%clk 0:02:59]}  h6 {[%clk 0:02:59]} 10. b3 {[%clk 0:02:58]}  c5 {[%clk 0:02:59]} 11. Ndf3 {[%clk 0:02:49]}  Nbd7 {[%clk 0:02:44]} 12. a3 {[%clk 0:02:45]}  Ba5 {[%clk 0:02:40]} 13. Rd1 {[%clk 0:02:32]}  Rc8 {[%clk 0:02:29]} 14. Qb2 {[%clk 0:02:11]}  b5 {[%clk 0:02:20]} 15. dxc5 {[%clk 0:02:01]}  bxc4 {[%clk 0:02:10]} 16. bxc4 {[%clk 0:01:43]}  Nxc5 {[%clk 0:02:09]} 17. Be3 {[%clk 0:01:30]}  Bb6 {[%clk 0:02:09]} 18. Rac1 {[%clk 0:01:14]}  Qe7 {[%clk 0:01:49]} 19. Nd4 {[%clk 0:00:52]}  Nfe4 {[%clk 0:01:32]} 20. cxd5 {[%clk 0:00:50]}  Bxd5 {[%clk 0:01:30]} 21. Nc4 {[%clk 0:00:36]}  Na4 {[%clk 0:01:15]} 22. Qb4 {[%clk 0:00:37]}  Qxb4 {[%clk 0:01:02]} 23. axb4 {[%clk 0:00:37]}  Nec3 {[%clk 0:00:29]} 24. Nxb6 {[%clk 0:00:35]}  axb6 {[%clk 0:00:27]} 25. Re1 {[%clk 0:00:29]}  Rc4 {[%clk 0:00:19]} 26. b5 {[%clk 0:00:22]}  Rec8 {[%clk 0:00:18]} 27. Nc6 {[%clk 0:00:22]}  Kf8 {[%clk 0:00:16]} 28. Bf4 {[%clk 0:00:16]}  Nxb5 {[%clk 0:00:11]} 29. Rc3 {[%clk 0:00:09]}  Nbxc3 {[%clk 0:00:11]} 0-1

[Event "January 9 Early 2024"]
[Site "https://www.chess.com"]
[Date "2024.01.11"]
[Round "5"]
[White "Cori T., Deysi"]
[Black "Mesquita, Eduardo Barbosa"]
[Result "0-1"]
[Board "127"]
[TimeControl "180+1"]
[WhiteFideId "3801934"]
[BlackFideId "22757163"]
[WhiteElo "2581"]
[BlackElo "2444"]
[WhiteTeam "PER"]
[BlackTeam "BRA"]
[WhiteClock "0:00:03"]
[BlackClock "0:00:34"]

1. Nf3 {[%clk 0:02:56]}  d5 {[%clk 0:02:59]} 2. g3 {[%clk 0:02:56]}  Nf6 {[%clk 0:03:00]} 3. Bg2 {[%clk 0:02:56]}  e6 {[%clk 0:03:00]} 4. O-O {[%clk 0:02:57]}  Be7 {[%clk 0:03:01]} 5. c4 {[%clk 0:02:57]}  O-O {[%clk 0:03:00]} 6. b3 {[%clk 0:02:58]}  a6 {[%clk 0:02:54]} 7. Bb2 {[%clk 0:02:57]}  b6 {[%clk 0:02:54]} 8. d3 {[%clk 0:02:52]}  Bb7 {[%clk 0:02:54]} 9. cxd5 {[%clk 0:02:53]}  Nxd5 {[%clk 0:02:48]} 10. Nbd2 {[%clk 0:02:51]}  Bf6 {[%clk 0:02:46]} 11. Qc1 {[%clk 0:02:50]}  Bxb2 {[%clk 0:02:43]} 12. Qxb2 {[%clk 0:02:51]}  c5 {[%clk 0:02:38]} 13. Ne5 {[%clk 0:02:48]}  Nd7 {[%clk 0:02:36]} 14. Ndc4 {[%clk 0:02:46]}  N7f6 {[%clk 0:02:27]} 15. Qd2 {[%clk 0:02:37]}  Qc7 {[%clk 0:01:54]} 16. Rac1 {[%clk 0:01:48]}  Nb4 {[%clk 0:01:48]} 17. a3 {[%clk 0:00:54]}  Bxg2 {[%clk 0:01:48]} 18. Kxg2 {[%clk 0:00:54]}  Nc6 {[%clk 0:01:47]} 19. Qf4 {[%clk 0:00:46]}  Nd5 {[%clk 0:01:38]} 20. Qg5 {[%clk 0:00:12]}  f6 {[%clk 0:01:36]} 21. Qg4 {[%clk 0:00:11]}  f5 {[%clk 0:01:28]} 22. Qh4 {[%clk 0:00:10]}  Nxe5 {[%clk 0:01:26]} 23. Nxe5 {[%clk 0:00:10]}  Qxe5 {[%clk 0:01:25]} 24. e4 {[%clk 0:00:10]}  fxe4 {[%clk 0:01:20]} 25. dxe4 {[%clk 0:00:11]}  Nf6 {[%clk 0:01:16]} 26. Rfe1 {[%clk 0:00:11]}  Rad8 {[%clk 0:01:13]} 27. Re2 {[%clk 0:00:07]}  Rd3 {[%clk 0:01:09]} 28. b4 {[%clk 0:00:06]}  Rxa3 {[%clk 0:00:53]} 29. bxc5 {[%clk 0:00:05]}  bxc5 {[%clk 0:00:51]} 30. f4 {[%clk 0:00:04]}  Qd4 {[%clk 0:00:48]} 31. Rce1 {[%clk 0:00:03]}  c4 {[%clk 0:00:36]} 32. Qh3 {[%clk 0:00:03]}  Re8 {[%clk 0:00:34]} 0-1